Cogmind - Beta 13 @@@ ROGUE MODE // 2024.04.04 @ 12:00:54 Player: JanPolak Result: Self-destructed Performance ------------- Evolutions (1) 500 Regions Visited (2) 400 Robots Destroyed (25) 125 Value Destroyed (492) 492 Prototype IDs (2) 40 Alien Tech Used (0) 0 Bonus (10) 10 TOTAL SCORE: 1567 Bonus ------- High Alert Combat Kills 10 Cogmind --------- Core Integrity 316/400 Matter 275/300 Energy 100/100 System Corruption 0% Temperature Cool (6) Movement Walking (120) Location -9/Materials Parts ------- > --- POWER (1) -------- (None) > --- PROPULSION (3) --- Improved Aluminum Leg > --- UTILITY (3) ------ Small Storage Unit > --- WEAPON (2) ------- (None) > --- INVENTORY (8) ---- Ion Engine Aluminum Leg Sensor Array Authchip [Device] Datajack Peak State ------------ > --- POWER ------------ Light Nuclear Core > --- PROPULSION ------- Aluminum Leg Aluminum Leg Improved Aluminum Leg > --- UTILITY ---------- Small Storage Unit Shield Generator > --- WEAPON ----------- Small Laser Grenade Launcher > --- INVENTORY -------- Ion Engine Light Ion Engine Aluminum Leg Sensor Array Authchip [Device] Small Laser Grenade Launcher Datajack [Rating: 13] Favorites ----------- Power Light Nuclear Core Engine Ion Engine Power Core Light Nuclear Core Propulsion Aluminum Leg Leg Aluminum Leg Utility Small Storage Unit Device Shield Generator Storage Small Storage Unit Weapon Small Laser Energy Gun Small Laser Launcher Grenade Launcher Build | -11 -10 -9 ------- Run | Yrd Mat Mat Slots Evolved 2 | . . 2 Power . | . . . Propulsion 1 | . . 1 Utility 1 | . . 1 Weapon . | . . . Parts Attached 23 | 6 13 4 Power 3 | 1 1 1 Engine 2 | 1 . 1 Core 1 | . 1 . Reactor . | . . . Propulsion 3 | 2 . 1 Treads . | . . . Leg 3 | 2 . 1 Wheel . | . . . Hover . | . . . Flight . | . . . Utility 5 | 1 4 . Device 3 | . 3 . Storage 2 | 1 1 . Processor . | . . . Hackware . | . . . Protection . | . . . Artifact . | . . . Weapon 12 | 2 8 2 Energy Gun 7 | 2 4 1 Energy Cannon . | . . . Ballistic Gun . | . . . Ballistic Cannon . | . . . Launcher 5 | . 4 1 Special Weapon . | . . . Impact Weapon . | . . . Slashing Weapon . | . . . Piercing Weapon . | . . . Special Melee Weapon . | . . . Unidentified Prototypes . | . . . Parts Lost 9 | . . 9 Power 2 | . . 2 Propulsion 2 | . . 2 Utility 1 | . . 1 Weapon 4 | . . 4 Highest Loss Streak 9 | . . 9 To Critical Strikes . | . . . Average Slot Usage (%) 95 | . 99 73 Engine 4 | . 5 . Core 8 | . 8 8 Leg 27 | . 28 23 Device 13 | . 14 8 Storage 12 | . 13 11 Energy Gun 24 | . 26 11 Launcher 2 | . 1 10 Naked Turns . | . . . Heaviest Build 16 | 12 16 16 Greatest Support 33 | 20 20 33 Greatest Overweight (x) 1 | 1 . . Average Overweight (x) . | . . . Largest Inventory Capacity 8 | 8 8 8 Average Capacity 7 | 6 7 8 Most Carried 8 | 5 8 8 Average Carried 6 | 1 6 7 Final Capacity 8 | 8 8 8 Final Carried 8 | 2 8 5 Class Distribution -------------------- 100% | Mutant Dominant Class ---------------- Mutant | -10/Materials Mutant | -9/Materials Resources | -11 -10 -9 ----------- Run | Yrd Mat Mat Matter Collected 555 | 163 318 74 Remotely . | . . . Salvage Created 521 | . 408 113 Parts 41 | . 34 7 Haulers Intercepted 2 | . 2 . Recyclers Shooed 2 | . 2 . Parts Field Recycled . | . . . Retrieved Matter . | . . . Parts Self-Destructed . | . . . Prevented . | . . . Kills | -11 -10 -9 ------- Run | Yrd Mat Mat Combat Hostiles Destroyed 17 | . 12 5 Guns 4 | . 3 1 AOE 13 | . 9 4 Classes Destroyed 8 | . 7 1 Worker 1 | . 1 . Builder 1 | . 1 . Hauler 2 | . 2 . Recycler 2 | . 1 1 Operator 2 | . 2 . Swarmer 9 | . 6 3 Grunt 7 | . 6 1 Duelist 1 | . . 1 Best Kill Streak 6 | . 4 6 Combat Bots Only 5 | . 3 5 Max Kills in Single Turn 4 | . 4 2 Gunslinging . | . . . Exploded 2 | . 2 2 Melee . | . . . Uniques/NPCs Destroyed . | . . . Combat | -11 -10 -9 -------- Run | Yrd Mat Mat Hostile Shots Fired 86 | . 44 42 Missed 35 | . 19 16 Damage Taken 896 | . 293 603 Core 127 | . 43 84 Absorbed by Shields 167 | . 117 50 Core Remaining (%) 91 | 100 82 . Volleys Fired 51 | . 41 10 Largest 2 | . 2 2 Hottest 80 | . 80 70 Shots Fired 83 | . 72 11 Gun 64 | . 59 5 Cannon . | . . . Launcher 19 | . 13 6 Special . | . . . Kinetic . | . . . Thermal 64 | . 59 5 Explosive 19 | . 13 6 Electromagnetic . | . . . Robot Hit Streak 6 | . 6 5 Robot Miss Streak 4 | . 4 1 Penetration Max . | . . . Secondary Targets . | . . . Shots Hit Robots 40 | . 32 8 Core Hits 41 | . 28 13 Critical Kills . | . . . Critical Parts Destroyed . | . . . Critical Strikes . | . . . Melee Attacks . | . . . Impact . | . . . Slashing . | . . . Piercing . | . . . Sneak Attacks . | . . . Combat Hostiles . | . . . Follow-up Attacks . | . . . Damage Inflicted 2087 | . 1504 583 Guns 384 | . 337 47 Cannons . | . . . Explosions 1703 | . 1167 536 Melee . | . . . Ramming . | . . . Kinetic . | . . . Thermal 472 | . 425 47 Explosive 1615 | . 1079 536 Electromagnetic . | . . . Impact . | . . . Slashing . | . . . Piercing . | . . . Highest Corruption 1 | . 1 . Average Corruption 1 | . 1 . Corruption Purged . | . . . Corruption Blocked . | . . . Effects 3 | . 3 . Message Errors 3 | . 3 . Overload Shots . | . . . Overflow Damage 59 | . 57 2 Projectiles . | . . . Explosions 59 | . 57 2 Melee . | . . . Knockbacks . | . . . Impact . | . . . Kinetic . | . . . Secondary . | . . . Self-Inflicted Damage 228 | . 127 101 Shots 8 | . 4 4 Rammed . | . . . Targets Rammed . | . . . Kicked . | . . . Crushed . | . . . Highest Temperature 96 | . 96 . Average Temperature 33 | . 33 . Received Heat Transfer 98 | . 50 48 Siege Activations . | . . . Robots Corrupted . | . . . Combat Hostiles . | . . . Parts Fried . | . . . Impact Corruptions . | . . . Robots Melted . | . . . Combat Hostiles . | . . . Parts Melted . | . . . Heat Transferred 925 | . 825 100 Parts Sabotaged . | . . . Parts Stolen . | . . . Parts Stripped . | . . . Power Chain Reactions . | . . . Alert | -11 -10 -9 ------- Run | Yrd Mat Mat Peak Influence 423 | . 423 302 Initial 178 | . . 178 Average 182 | . 196 204 Maximum Alert Level 2 | . 2 1 Low Security (%) 53 | 100 46 68 Level 1 42 | . 48 31 Level 2 3 | . 4 . Level 3 . | . . . Level 4 . | . . . Level 5 . | . . . High Security . | . . . Max Security . | . . . Squads Dispatched 3 | . 2 1 Investigation . | . . . Extermination . | . . . Reinforcement 3 | . 2 1 Assault . | . . . Garrison . | . . . Intercept . | . . . Searches Triggered . | . . . Construction Impeded . | . . . Haulers Reinforced . | . . . Active Scanning Responses . | . . . Cargo Convoy Interrupts . | . . . Stealth | -11 -10 -9 --------- Run | Yrd Mat Mat Distress Signals 1 | . . 1 Communications Jammed . | . . . Distress Signals . | . . . Times Spotted 31 | . 20 11 Peak Tracking Total 6 | . 4 6 Tactical Retreats 2 | . 2 . Traps | -11 -10 -9 ------- Run | Yrd Mat Mat Traps Triggered 1 | . 1 . Indirectly . | . . . Trap Hack Attempts . | . . . Triggered . | . . . Disarmed . | . . . Reprogrammed . | . . . Reused . | . . . Traps Extracted . | . . . Installed . | . . . Triggered . | . . . Machines | -11 -10 -9 ---------- Run | Yrd Mat Mat Machines Disabled 5 | . 4 1 Max in Single Turn 3 | . 3 1 Machines Repaired . | . . . Machines Dismantled . | . . . Machines Sabotaged . | . . . Overloaded Fab Kills . | . . . Hacking | -11 -10 -9 --------- Run | Yrd Mat Mat Machines Accessed 5 | . 5 . Terminals 5 | . 5 . Fabricators . | . . . Repair Stations . | . . . Recycling Units . | . . . Scanalyzers . | . . . Garrison Access . | . . . Total Hacks 11 | . 11 . Successful 9 | . 9 . Failed 2 | . 2 . Catastrophic . | . . . Database Lockouts . | . . . Manual . | . . . Terminals 11 | . 11 . Fabricators . | . . . Repair Stations . | . . . Recycling Units . | . . . Scanalyzers . | . . . Garrison Access . | . . . Terminal Hacks 9 | . 9 . Record 5 | . 5 . Robot Analysis 1 | . 1 . Prototype ID Bank 1 | . 1 . Recall Investigation 1 | . 1 . Hauler Manifests 1 | . 1 . Fabricator Hacks . | . . . Repair Station Hacks . | . . . Recycling Unit Hacks . | . . . Scanalyzer . | . . . Garrison Access Hacks . | . . . Unauthorized Hacks . | . . . Terminals . | . . . Fabricators . | . . . Repair Stations . | . . . Recycling Units . | . . . Scanalyzers . | . . . Garrison Access . | . . . Data Cores Recovered 1 | . 1 . Used . | . . . Hacking Detections 2 | . 2 . Full Trace Events . | . . . Feedback Events . | . . . Feedback Blocked . | . . . Robot Schematics Acquired . | . . . Robots Built . | . . . Authchips . | . . . Time . | . . . Total Robot Build Rating . | . . . Part Schematics Acquired . | . . . Parts Built . | . . . Authchips . | . . . Time . | . . . Total Part Build Rating . | . . . Parts Repaired . | . . . Time . | . . . Parts Recycled . | . . . Recycled Matter . | . . . Retrieved Matter . | . . . Retrieved Components . | . . . Parts Scanalyzed . | . . . Part Schematics Acquired . | . . . Parts Damaged . | . . . Bothacking | -11 -10 -9 ------------ Run | Yrd Mat Mat Used RIF Installer . | . . . Robots Hacked . | . . . Non-combat . | . . . Combat . | . . . Robot Hacks Applied . | . . . Relay Couplers Released . | . . . Fabnet Peak Effective % . | . . . Robots Rewired . | . . . Allies Hacked . | . . . Hacks Repelled . | . . . Allies | -11 -10 -9 -------- Run | Yrd Mat Mat Total Allies . | . . . Largest Group . | . . . Highest-Rated Group . | . . . Highest-Rated Ally . | . . . Total Orders . | . . . Ally Attacks . | . . . Total Damage . | . . . Kills . | . . . Allies Corrupted . | . . . Allies Melted . | . . . Intel | -11 -10 -9 ------- Run | Yrd Mat Mat Robot Analysis Total 1 | . 1 . Derelict Logs Recovered . | . . . Drone Launches . | . . . Drone Recoveries . | . . . Exploration | -11 -10 -9 ------------- Run | Yrd Mat Mat Turns Passed 919 | 71 732 116 Spaces Moved 612 | 50 487 75 Core 7 | 7 . . Treads . | . . . Legs 605 | 43 487 75 Wheels . | . . . Hover . | . . . Flight . | . . . Fastest Speed 50 | 50 120 120 Average Speed 119 | 116 120 120 Slowest Speed 120 | 120 120 120 Overloaded Moves . | . . . Propulsion Burnouts . | . . . Robots Hopped . | . . . Cave-ins Triggered . | . . . Exploration Rate (%) 36 | 5 93 11 Regions Visited 2 Branch Regions . Pre-discovered Areas . | . . . Known Exits Taken . | . . . Unknown Exits Taken 2 | 1 1 . Scrap Searched . | . . . Spaces Dug 9 | . . 9 Terrain Destroyed 162 | . 130 32 Melee . | . . . Projectile . | . . . AOE 162 | . 130 32 Terrain Rammed . | . . . Walls Destroyed . | . . . Machines Disabled . | . . . Actions | -11 -10 -9 --------- Run | Yrd Mat Mat Total 710 | 63 558 89 Wait 3 | . 3 . Move 610 | 49 486 75 Hop . | . . . Pick Up 19 | 8 11 . Fast Attach 1 | . . 1 Attach 10 | 6 1 3 Detach . | . . . Swap 12 | . 12 . Drop 4 | . 4 . Fire 51 | . 41 10 Melee . | . . . Ram . | . . . Kick . | . . . Crush . | . . . Escape Stasis . | . . . Rewire . | . . . Trap . | . . . Miscellaneous . | . . . Route ------- -11/Scrapyard -10/Materials (discovered 5 exits: [*Mat x3] / [*Min x2]) -9/Materials History --------- Turn | Location | Event 7 | -11/Scrapyard | Discovered new exit (range 16) 72 | -11/Scrapyard | Entered Materials 285 | -10/Materials | Discovered new exit (range 10) 308 | -10/Materials | Build established: Mutant 415 | -10/Materials | Discovered new exit (range 12) 460 | -10/Materials | Discovered new exit (range 12) 724 | -10/Materials | Discovered new exit (range 13) 783 | -10/Materials | Discovered new exit (range 14) 804 | -10/Materials | Entered another Materials area 804 | -9/Materials | Evolved 2 slots: Propulsion x1, Utility x1 920 | -9/Materials | Self-destructed Last Messages --------------- 00904_ U-05 Engineer builds a Wall. 00906_ The unstable cave ceiling collapses. 00906_ L-31 Rogue crushed by falling debris. 00906_ L-31 Rogue system corrupted by crushing effect. 00907_ W-16 Scout sends out distress signal. 00907_ R-06 Scavenger collects Flight Unit. 00909_ L-31 Rogue destroyed. 00909_ R-06 Scavenger destroyed. 00909_ U-05 Engineer lays Concrete. 00912_ U-05 Engineer builds a Wall. 00915_ Grenade Launcher destroyed. 00915_ Lgt. Ion Engine destroyed. 00916_ U-05 Engineer builds a Wall. 00917_ O-16 Technician uses terminal to summon reinforcements. 00917_ ALERT: Hostiles spotted, dispatching reinforcements to Terminal M006. 00917_ O-16 Technician locks terminal. 00920_ Sml. Laser destroyed. Map ----- +----------------------------------------------------+ | | | | | | | | | | | | | | | | | | | | | | | | | | | ?????????????????????????????????????????????????? | | ?????????????????????????????????????????????????? | | ???????????###########???????????????????????????? | | ???????????# #???????????????????????????? | | ???????????# """" #???????????????????????????? | | ????######## """ #???????????????????????????? | | ????# ## " !#???????????????????????????? | | ????# ## ###?????????????????????????? | | ????# ## % # ###########???????????????? | | ????#""" ## # #???????????????? | | ????#""" ## % =[* # """ #???????????????? | | ????#""" ###### ##%= g """ #???????????????? | | ????# #???# *u [[ l@ """ #???????????????? | | ????#""" #####u # #% w #???????????????? | | #####""" + #[ [ # / #???????????????? | | # #""" ##### # # #???????????????? | | # # #???# # """ # "T" #???????????????? | | # # #???# # """ # o #???????????????? | | # ###+####### # """ #####Y####???????????????? | | # """ #???? #?????????????????? | | + +????? ?????????????????? | | " """ """ """ # ??? #????? ????????????????? | | " """ """ """ # ??? #??????###???????????????? | | " """ """ """ # ??? #????????????????????????? | | #?????#????????????????????????? | | #??????????????????????????????? | | #??????????????????????????????? | | ? ??????????????????????????????? | | ?? #??????????????????????????????? | | ##########???#???????????????????????????????? | | #????????????????????????????????????????????? | | #????????????????????????????????????????????? | | ?????????????????????????????????????????????? | | ?????????????????????????????????????????????? | | ?????????????????????????????????????????????? | | ?????????????????????????????????????????????????? | | ?????????????????????????????????????????????????? | +----------------------------------------------------+ Best States ------------- Heat Dissipation 28 Energy Generation 14 Energy Capacity 250 Matter Stores 300 Matter Capacity 300 Sight Range 16 Robot Scan Range 14 Terrain Scan Density 10 Evasion (%) 55 Authchip Count 1 Item Schematics ----------------- None Robot Schematics ------------------ None Fabricated ------------ Nothing Alien Tech Used ----------------- None Achievements -------------- Loot Pinata Challenges ------------ None Game ------ Seed MolecularThermicCalibrator Manual? 0 Play Time 00:19:19 Cumulative 3.4 hours Start 2024.04.03 @ 19:13:16 End 2024.04.04 @ 12:00:54 Sessions 3 Manual Loads 0 Difficulty Rogue Special Mode None Game No. 2 Rogue 2 Adventurer 0 Explorer 0 Win Type - Total 0 Types 0/0/0/0/0/0/0/0/0 Lore% 2 Gallery% 5 Achievement% 3 Wizard Run 0 Options --------- Layout 2 ASCII 0 Keyboard 0 Movement Mouse Keybinds 0 Fullscreen 2 Font 48/Terminus Map View 50x44 Zoom Use 0% Tactical HUD 1 Map Filters NONE Filters NONE Steam 1 RUN: 2a61a5cf-ca6d-4499-8aba-281e1794ff61